[Event "Live Chess"]
[Site "Chess.com"]
[Date "2024.06.01"]
[Round "-"]
[White "upoe610"]
[Black "degringolade64"]
[Result "1-0"]
[WhiteElo "2235"]
[BlackElo "2150"]
[TimeControl "300"]
[EndTime "13:26:43 PDT"]
[Termination "upoe610 won by resignation"]

1. c4 {[%clk 0:04:56.7]} 1... e5 {[%clk 0:04:58.8]} 2. g3 {[%clk 0:04:55.8]}
2... c6 {[%clk 0:04:57.3]} 3. Nf3 {[%clk 0:04:53.8]} 3... e4 {[%clk 0:04:55.5]}
4. Nd4 {[%clk 0:04:51.4]} 4... d5 {[%clk 0:04:55.1]} 5. cxd5 {[%clk 0:04:47.8]}
5... Qxd5 {[%clk 0:04:55]} 6. Nc2 {[%clk 0:04:45.7]} 6... Nf6 {[%clk 0:04:51.4]}
7. Nc3 {[%clk 0:04:31.8]} 7... Qh5 {[%clk 0:04:48.1]} 8. Ne3 {[%clk 0:04:30.3]}
8... Bh3 {[%clk 0:04:38.7]} 9. Qb3 {[%clk 0:04:11]} 9... Nbd7 {[%clk 0:04:17.9]}
10. Qxb7 {[%clk 0:03:50.7]} 10... Rb8 {[%clk 0:04:16.1]} 11. Qxc6 {[%clk
0:03:49.9]} 11... Bxf1 {[%clk 0:04:12.3]} 12. Rxf1 {[%clk 0:03:47.9]} 12... Bc5
{[%clk 0:03:47]} 13. Ned5 {[%clk 0:03:26]} 13... O-O {[%clk 0:03:34.7]} 14.
Nxf6+ {[%clk 0:03:19.3]} 14... Nxf6 {[%clk 0:03:34.6]} 15. b3 {[%clk 0:03:14.4]}
15... e3 {[%clk 0:02:44.5]} 16. fxe3 {[%clk 0:03:05.3]} 16... Qxh2 {[%clk
0:02:42.8]} 17. Bb2 {[%clk 0:03:01.6]} 17... Qxg3+ {[%clk 0:02:41.3]} 18. Kd1
{[%clk 0:02:57.5]} 18... Rfd8 {[%clk 0:02:27.6]} 19. Kc2 {[%clk 0:02:55.1]}
19... Rbc8 {[%clk 0:02:16.8]} 20. Qf3 {[%clk 0:02:52.3]} 20... Qd6 {[%clk
0:01:49.3]} 21. d3 {[%clk 0:02:48.7]} 21... Ba3 {[%clk 0:01:37.3]} 22. Rac1
{[%clk 0:02:45.6]} 22... Nd5 {[%clk 0:01:33.5]} 23. Qxf7+ {[%clk 0:02:31]} 23...
Kh8 {[%clk 0:01:31.1]} 24. Kb1 {[%clk 0:02:26.4]} 24... Bxb2 {[%clk 0:01:21.9]}
25. Kxb2 {[%clk 0:02:22]} 25... Nxc3 {[%clk 0:01:12.7]} 26. Rxc3 {[%clk
0:02:18.9]} 26... Rxc3 {[%clk 0:01:08.8]} 27. Kxc3 {[%clk 0:02:18.8]} 27... Qa3
{[%clk 0:00:55.1]} 28. e4 {[%clk 0:02:05.3]} 28... Qa5+ {[%clk 0:00:41.4]} 29.
Kb2 {[%clk 0:01:56.1]} 29... Qd2+ {[%clk 0:00:38.5]} 30. Kb1 {[%clk 0:01:55.5]}
30... h6 {[%clk 0:00:28.6]} 31. Qe7 {[%clk 0:01:48.2]} 31... Rc8 {[%clk
0:00:27]} 32. Rf8+ {[%clk 0:01:46.4]} 32... Rxf8 {[%clk 0:00:25.5]} 33. Qxf8+
{[%clk 0:01:46.3]} 33... Kh7 {[%clk 0:00:25]} 34. Qf5+ {[%clk 0:01:45.3]} 34...
Kg8 {[%clk 0:00:23]} 35. Qc8+ {[%clk 0:01:42.4]} 35... Kh7 {[%clk 0:00:21.6]}
36. Qc2 {[%clk 0:01:41.7]} 36... Qxc2+ {[%clk 0:00:16]} 37. Kxc2 {[%clk
0:01:41.1]} 37... h5 {[%clk 0:00:15.8]} 38. Kd2 {[%clk 0:01:38]} 38... h4 {[%clk
0:00:15.7]} 39. Ke3 {[%clk 0:01:37.8]} 39... h3 {[%clk 0:00:15.1]} 40. Kf3
{[%clk 0:01:36.5]} 40... g5 {[%clk 0:00:14.8]} 41. Kg3 {[%clk 0:01:35.9]} 41...
g4 {[%clk 0:00:14.2]} 42. e5 {[%clk 0:01:34.2]} 42... Kg6 {[%clk 0:00:13.9]} 43.
d4 {[%clk 0:01:33.7]} 43... Kf5 {[%clk 0:00:13.3]} 44. e4+ {[%clk 0:01:32.4]}
44... Ke6 {[%clk 0:00:12.7]} 45. b4 {[%clk 0:01:31]} 45... a6 {[%clk 0:00:11.5]}
46. a4 {[%clk 0:01:30.2]} 46... Ke7 {[%clk 0:00:10.8]} 47. b5 {[%clk 0:01:29.2]}
1-0

[Event "Live Chess"]
[Site "Chess.com"]
[Date "2024.06.01"]
[Round "-"]
[White "WeakOldFinished"]
[Black "cymbalshift"]
[Result "1-0"]
[WhiteElo "2173"]
[BlackElo "1652"]
[TimeControl "300"]
[EndTime "13:26:52 PDT"]
[Termination "WeakOldFinished won by resignation"]

1. e4 {[%clk 0:04:56.3]} 1... e5 {[%clk 0:04:59]} 2. f4 {[%clk 0:04:55]} 2... d5
{[%clk 0:04:57.7]} 3. exd5 {[%clk 0:04:52.7]} 3... exf4 {[%clk 0:04:56.5]} 4.
Nf3 {[%clk 0:04:50.9]} 4... Nf6 {[%clk 0:04:56]} 5. Bc4 {[%clk 0:04:46.6]} 5...
Nxd5 {[%clk 0:04:42]} 6. O-O {[%clk 0:04:45.6]} 6... Be7 {[%clk 0:04:28.8]} 7.
Bxd5 {[%clk 0:04:44.2]} 7... Qxd5 {[%clk 0:04:27]} 8. Nc3 {[%clk 0:04:43.9]}
8... Qf5 {[%clk 0:04:20.1]} 9. d4 {[%clk 0:04:40.2]} 9... O-O {[%clk 0:04:14.7]}
10. Ne5 {[%clk 0:04:37.7]} 10... g5 {[%clk 0:04:06.1]} 11. Qh5 {[%clk
0:04:16.5]} 11... Be6 {[%clk 0:03:16.7]} 12. Bd2 {[%clk 0:03:40.5]} 12... Qxc2
{[%clk 0:03:09.7]} 13. Rad1 {[%clk 0:03:38.5]} 13... c5 {[%clk 0:03:06.7]} 14.
d5 {[%clk 0:03:35]} 14... Qf5 {[%clk 0:02:41.4]} 15. dxe6 {[%clk 0:03:24.7]}
15... Qxe5 {[%clk 0:02:39]} 16. exf7+ {[%clk 0:03:22.8]} 16... Rxf7 {[%clk
0:02:37.5]} 17. Rfe1 {[%clk 0:03:13.3]} 17... Qf6 {[%clk 0:02:12.4]} 18. Nd5
{[%clk 0:03:05.2]} 18... Qd4+ {[%clk 0:02:10.6]} 19. Be3 {[%clk 0:03:04.4]}
19... Qxd1 {[%clk 0:02:00.7]} 20. Qxd1 {[%clk 0:02:50.6]} 20... fxe3 {[%clk
0:01:57.5]} 21. Nc7 {[%clk 0:02:49.2]} 21... Nc6 {[%clk 0:01:50.9]} 22. Nxa8
{[%clk 0:02:47.3]} 22... Nd4 {[%clk 0:01:50.4]} 23. Rxe3 {[%clk 0:02:44.5]}
23... Bd6 {[%clk 0:01:49.2]} 24. Qg4 {[%clk 0:02:23.7]} 24... Bf4 {[%clk
0:01:43]} 25. Re8+ {[%clk 0:02:21.8]} 25... Kg7 {[%clk 0:01:42.2]} 26. h4 {[%clk
0:02:19.2]} 26... h6 {[%clk 0:01:38.3]} 27. hxg5 {[%clk 0:02:17.2]} 27... hxg5
{[%clk 0:01:36.7]} 28. Qh5 {[%clk 0:02:11.5]} 28... b5 {[%clk 0:01:18.6]} 29.
Qh8+ {[%clk 0:02:01.9]} 29... Kg6 {[%clk 0:01:17.5]} 30. Rg8+ {[%clk 0:02:00.4]}
30... Kf5 {[%clk 0:01:15.2]} 31. Rf8 {[%clk 0:01:58.7]} 31... Rxf8 {[%clk
0:01:12.5]} 32. Qxf8+ {[%clk 0:01:57.3]} 32... Kg4 {[%clk 0:01:12.4]} 33. Qxc5
{[%clk 0:01:54.5]} 33... Be3+ {[%clk 0:01:05.9]} 34. Kf1 {[%clk 0:01:53.1]}
34... Nf5 {[%clk 0:00:51.3]} 35. Qxb5 {[%clk 0:01:46]} 35... Ng3+ {[%clk
0:00:50.5]} 36. Ke1 {[%clk 0:01:44.9]} 36... a6 {[%clk 0:00:45.3]} 37. Qxa6
{[%clk 0:01:43.4]} 1-0

[Event "Live Chess"]
[Site "Chess.com"]
[Date "2024.06.01"]
[Round "-"]
[White "chessfiction"]
[Black "matt1979"]
[Result "1-0"]
[WhiteElo "2380"]
[BlackElo "1382"]
[TimeControl "300"]
[EndTime "13:27:07 PDT"]
[Termination "chessfiction won by checkmate"]

1. e4 {[%clk 0:04:51.4]} 1... d6 {[%clk 0:04:58.5]} 2. d4 {[%clk 0:04:46.7]}
2... Nf6 {[%clk 0:04:55.5]} 3. Nc3 {[%clk 0:04:46.2]} 3... Nbd7 {[%clk
0:04:53.7]} 4. f4 {[%clk 0:04:43.1]} 4... e5 {[%clk 0:04:52.3]} 5. Nf3 {[%clk
0:04:41.5]} 5... exd4 {[%clk 0:04:49]} 6. Nxd4 {[%clk 0:04:41.4]} 6... c6 {[%clk
0:04:41.9]} 7. Bc4 {[%clk 0:04:37.2]} 7... Qc7 {[%clk 0:04:39.4]} 8. O-O {[%clk
0:04:33.5]} 8... d5 {[%clk 0:04:33.5]} 9. exd5 {[%clk 0:04:30.6]} 9... Bc5
{[%clk 0:04:29.9]} 10. Re1+ {[%clk 0:04:28.2]} 10... Kf8 {[%clk 0:04:24.7]} 11.
Be3 {[%clk 0:04:24.3]} 11... Nb6 {[%clk 0:04:14.4]} 12. Ne6+ {[%clk 0:04:07]}
12... fxe6 {[%clk 0:04:12.3]} 13. Bxc5+ {[%clk 0:04:06.9]} 13... Kg8 {[%clk
0:04:06.4]} 14. dxe6 {[%clk 0:03:21.5]} 14... Nxc4 {[%clk 0:04:03.4]} 15. b3
{[%clk 0:02:52.5]} 15... Nb6 {[%clk 0:03:39.6]} 16. Bd6 {[%clk 0:02:28.8]} 16...
Qd8 {[%clk 0:03:29.3]} 17. e7 {[%clk 0:02:26]} 17... Qe8 {[%clk 0:03:24.4]} 18.
Qd4 {[%clk 0:02:22.2]} 18... Nbd7 {[%clk 0:03:10.6]} 19. Rad1 {[%clk 0:02:17.7]}
19... b6 {[%clk 0:02:56.5]} 20. Qc4+ {[%clk 0:02:10.4]} 20... Nd5 {[%clk
0:02:53.3]} 21. Nxd5 {[%clk 0:02:08.7]} 21... h6 {[%clk 0:02:41.2]} 22. Nf6#
{[%clk 0:02:07.5]} 1-0

[Event "Live Chess"]
[Site "Chess.com"]
[Date "2024.06.01"]
[Round "-"]
[White "Kyrylo7770"]
[Black "MaksymYurii"]
[Result "1-0"]
[WhiteElo "1642"]
[BlackElo "947"]
[TimeControl "300"]
[EndTime "13:27:10 PDT"]
[Termination "Kyrylo7770 won by checkmate"]

1. d4 {[%clk 0:04:56.1]} 1... e6 {[%clk 0:04:58.5]} 2. Nf3 {[%clk 0:04:55.1]}
2... Nc6 {[%clk 0:04:57.1]} 3. Bg5 {[%clk 0:04:54.6]} 3... d5 {[%clk 0:04:55.2]}
4. Bxd8 {[%clk 0:04:53.6]} 4... Nxd8 {[%clk 0:04:52.8]} 5. e3 {[%clk 0:04:52.7]}
5... Nf6 {[%clk 0:04:45.3]} 6. Nc3 {[%clk 0:04:50.7]} 6... Bd7 {[%clk
0:04:43.1]} 7. Ne5 {[%clk 0:04:48.8]} 7... Bb4 {[%clk 0:04:40.2]} 8. a3 {[%clk
0:04:47.8]} 8... Bxc3+ {[%clk 0:04:35.9]} 9. bxc3 {[%clk 0:04:47.7]} 9... Ne4
{[%clk 0:04:24]} 10. Bd3 {[%clk 0:04:46.3]} 10... Nxc3 {[%clk 0:04:21.4]} 11.
Qd2 {[%clk 0:04:45.7]} 11... Ne4 {[%clk 0:04:08.4]} 12. Bxe4 {[%clk 0:04:44.4]}
12... dxe4 {[%clk 0:04:08.3]} 13. O-O {[%clk 0:04:43]} 13... f6 {[%clk
0:04:03.5]} 14. Nxd7 {[%clk 0:04:40.2]} 14... Kxd7 {[%clk 0:04:03.4]} 15. Rab1
{[%clk 0:04:38.9]} 15... b6 {[%clk 0:04:00.8]} 16. c4 {[%clk 0:04:38]} 16... a5
{[%clk 0:03:58.5]} 17. Qc2 {[%clk 0:04:37.1]} 17... Nc6 {[%clk 0:03:53.6]} 18.
Qxe4 {[%clk 0:04:35.4]} 18... Rac8 {[%clk 0:03:44.2]} 19. d5 {[%clk 0:04:34.5]}
19... exd5 {[%clk 0:03:42.4]} 20. Qxd5+ {[%clk 0:04:33]} 20... Ke7 {[%clk
0:03:36.3]} 21. Qxc6 {[%clk 0:04:30.2]} 21... Rhd8 {[%clk 0:03:34.4]} 22. Rbd1
{[%clk 0:04:27.5]} 22... Rd6 {[%clk 0:03:31.9]} 23. Qe4+ {[%clk 0:04:24.6]}
23... Kf7 {[%clk 0:03:29.5]} 24. Rxd6 {[%clk 0:04:22.8]} 24... cxd6 {[%clk
0:03:28.2]} 25. h4 {[%clk 0:04:22.4]} 25... Re8 {[%clk 0:03:22.2]} 26. Qb7+
{[%clk 0:04:21]} 26... Re7 {[%clk 0:03:20.1]} 27. Qxb6 {[%clk 0:04:20.4]} 27...
Re6 {[%clk 0:03:18]} 28. Qc7+ {[%clk 0:04:18.7]} 28... Re7 {[%clk 0:03:16.8]}
29. Qxd6 {[%clk 0:04:17.8]} 29... Re6 {[%clk 0:03:15.9]} 30. Qd7+ {[%clk
0:04:16.8]} 30... Re7 {[%clk 0:03:14.9]} 31. Qd5+ {[%clk 0:04:16.5]} 31... Re6
{[%clk 0:03:14]} 32. Qxa5 {[%clk 0:04:16.1]} 32... Re7 {[%clk 0:03:12.1]} 33.
Qh5+ {[%clk 0:04:14.1]} 33... g6 {[%clk 0:03:10.1]} 34. Qxh7+ {[%clk 0:04:13.2]}
34... Ke6 {[%clk 0:03:09.4]} 35. Qxg6 {[%clk 0:04:12.3]} 35... Rd7 {[%clk
0:03:05.8]} 36. f4 {[%clk 0:04:10.5]} 36... Rf7 {[%clk 0:03:02.9]} 37. Qe4+
{[%clk 0:04:08.8]} 37... Kd7 {[%clk 0:03:01.3]} 38. Rd1+ {[%clk 0:04:08.3]}
38... Kc7 {[%clk 0:03:00.3]} 39. Rd5 {[%clk 0:04:04.2]} 39... Kc6 {[%clk
0:02:58.2]} 40. Qe6+ {[%clk 0:04:01.9]} 40... Kc7 {[%clk 0:02:54]} 41. Qxf7+
{[%clk 0:04:01.2]} 41... Kc6 {[%clk 0:02:53.7]} 42. Qd7+ {[%clk 0:04:00.5]}
42... Kb6 {[%clk 0:02:52.7]} 43. Qb5+ {[%clk 0:03:59]} 43... Kc7 {[%clk
0:02:51.8]} 44. Rd7+ {[%clk 0:03:58.9]} 44... Kc8 {[%clk 0:02:50.3]} 45. Qb7#
{[%clk 0:03:46.7]} 1-0

[Event "Live Chess"]
[Site "Chess.com"]
[Date "2024.06.01"]
[Round "-"]
[White "Queensandpawns"]
[Black "GoldsmanB"]
[Result "1-0"]
[WhiteElo "2368"]
[BlackElo "1083"]
[TimeControl "300"]
[EndTime "13:27:10 PDT"]
[Termination "Queensandpawns won by resignation"]

1. e4 {[%clk 0:04:59.3]} 1... e6 {[%clk 0:04:59]} 2. c4 {[%clk 0:04:56.4]} 2...
d5 {[%clk 0:04:57.4]} 3. cxd5 {[%clk 0:04:56.3]} 3... exd5 {[%clk 0:04:56.6]} 4.
exd5 {[%clk 0:04:56]} 4... Qxd5 {[%clk 0:04:55.9]} 5. Nc3 {[%clk 0:04:55.2]}
5... Qd8 {[%clk 0:04:54.2]} 6. Nf3 {[%clk 0:04:55.1]} 6... Nf6 {[%clk
0:04:52.7]} 7. Bc4 {[%clk 0:04:54.6]} 7... Nc6 {[%clk 0:04:51.7]} 8. O-O {[%clk
0:04:54.1]} 8... Bc5 {[%clk 0:04:50.5]} 9. Ng5 {[%clk 0:04:53]} 9... Rf8 {[%clk
0:04:27.2]} 10. Re1+ {[%clk 0:04:50.4]} 10... Be7 {[%clk 0:04:08.8]} 11. Qb3
{[%clk 0:04:50.3]} 11... Nd4 {[%clk 0:03:58.9]} 12. Bxf7+ {[%clk 0:04:48.5]}
12... Rxf7 {[%clk 0:03:53.6]} 13. Qxf7+ {[%clk 0:04:47.3]} 13... Kd7 {[%clk
0:03:52.5]} 14. Nd5 {[%clk 0:04:43.7]} 14... Nc2 {[%clk 0:03:46.9]} 15. Rxe7+
{[%clk 0:04:41.8]} 15... Qxe7 {[%clk 0:03:45.1]} 16. Qxe7+ {[%clk 0:04:40.7]}
16... Kc6 {[%clk 0:03:44.1]} 17. Nb4+ {[%clk 0:04:36]} 17... Nxb4 {[%clk
0:03:40.3]} 18. Qxb4 {[%clk 0:04:35.9]} 1-0

[Event "Live Chess"]
[Site "Chess.com"]
[Date "2024.06.01"]
[Round "-"]
[White "Enhard"]
[Black "WilliamofOrange16th"]
[Result "0-1"]
[WhiteElo "1434"]
[BlackElo "1984"]
[TimeControl "300"]
[EndTime "13:27:31 PDT"]
[Termination "WilliamofOrange16th won on time"]

1. d4 {[%clk 0:04:57.7]} 1... d5 {[%clk 0:04:58.9]} 2. Bf4 {[%clk 0:04:56.9]}
2... c6 {[%clk 0:04:57.3]} 3. e3 {[%clk 0:04:56.4]} 3... Qb6 {[%clk 0:04:56]} 4.
b3 {[%clk 0:04:53.2]} 4... Bf5 {[%clk 0:04:54.9]} 5. Bd3 {[%clk 0:04:44.3]} 5...
Bxd3 {[%clk 0:04:53.9]} 6. Qxd3 {[%clk 0:04:42.6]} 6... Nf6 {[%clk 0:04:51.2]}
7. Nd2 {[%clk 0:04:39.3]} 7... e6 {[%clk 0:04:48.6]} 8. Ngf3 {[%clk 0:04:36.3]}
8... Be7 {[%clk 0:04:46.9]} 9. O-O {[%clk 0:04:34.7]} 9... O-O {[%clk 0:04:46]}
10. c4 {[%clk 0:04:32.8]} 10... Nbd7 {[%clk 0:04:44.6]} 11. c5 {[%clk 0:04:30]}
11... Qd8 {[%clk 0:04:43.6]} 12. Ne5 {[%clk 0:04:26.5]} 12... Nh5 {[%clk
0:04:35.8]} 13. Bg3 {[%clk 0:04:23.1]} 13... f6 {[%clk 0:04:31.3]} 14. Nxd7
{[%clk 0:04:20.7]} 14... Qxd7 {[%clk 0:04:31.2]} 15. Qe2 {[%clk 0:04:08.3]}
15... Nxg3 {[%clk 0:04:29.2]} 16. hxg3 {[%clk 0:04:08.2]} 16... g6 {[%clk
0:04:28.7]} 17. Nf3 {[%clk 0:04:06]} 17... b6 {[%clk 0:04:26.1]} 18. Nh4 {[%clk
0:04:04.3]} 18... f5 {[%clk 0:04:21.6]} 19. Rac1 {[%clk 0:03:54.8]} 19... bxc5
{[%clk 0:04:20.4]} 20. dxc5 {[%clk 0:03:52.8]} 20... Bf6 {[%clk 0:04:19]} 21.
Nf3 {[%clk 0:03:45.6]} 21... a5 {[%clk 0:04:16.1]} 22. Nd4 {[%clk 0:03:41.8]}
22... Rfb8 {[%clk 0:04:14]} 23. Qc2 {[%clk 0:03:37.1]} 23... e5 {[%clk
0:04:09.3]} 24. Nf3 {[%clk 0:03:29.2]} 24... Kg7 {[%clk 0:04:05.8]} 25. a3
{[%clk 0:03:27.7]} 25... Qb7 {[%clk 0:03:55.8]} 26. Rb1 {[%clk 0:03:25.9]} 26...
Qd7 {[%clk 0:03:22.4]} 27. b4 {[%clk 0:03:24.6]} 27... axb4 {[%clk 0:03:20.7]}
28. axb4 {[%clk 0:03:23]} 28... Rb5 {[%clk 0:03:18.6]} 29. Qb3 {[%clk
0:02:54.9]} 29... Rab8 {[%clk 0:03:17.4]} 30. Qa4 {[%clk 0:02:46]} 30... Qb7
{[%clk 0:03:13.3]} 31. Rfc1 {[%clk 0:02:31.5]} 31... Rxb4 {[%clk 0:03:11.2]} 32.
Rxb4 {[%clk 0:02:30.2]} 32... Qxb4 {[%clk 0:03:09.9]} 33. Qxc6 {[%clk
0:02:29.6]} 33... Qb7 {[%clk 0:03:00.3]} 34. Qd6 {[%clk 0:02:25.1]} 34... Rd8
{[%clk 0:02:49.1]} 35. Qe6 {[%clk 0:02:06.4]} 35... Qc7 {[%clk 0:02:39.2]} 36.
Qb6 {[%clk 0:01:57.1]} 36... Rc8 {[%clk 0:02:29.1]} 37. Qb3 {[%clk 0:01:47.6]}
37... Qc6 {[%clk 0:02:26.3]} 38. Ne1 {[%clk 0:01:34.9]} 38... d4 {[%clk
0:02:22.3]} 39. exd4 {[%clk 0:01:31.6]} 39... exd4 {[%clk 0:02:22.2]} 40. Nd3
{[%clk 0:01:26.8]} 40... Be7 {[%clk 0:02:16.7]} 41. Ne5 {[%clk 0:01:19.4]} 41...
Qf6 {[%clk 0:02:11]} 42. Nd3 {[%clk 0:01:10.3]} 42... Qf7 {[%clk 0:02:05.2]} 43.
Qb7 {[%clk 0:01:08.4]} 43... Re8 {[%clk 0:01:56]} 44. Qd7 {[%clk 0:01:03.6]}
44... Bf6 {[%clk 0:01:53]} 45. Qb5 {[%clk 0:00:57.8]} 45... Rc8 {[%clk
0:01:49.2]} 46. c6 {[%clk 0:00:56.3]} 46... Qe6 {[%clk 0:01:46.4]} 47. c7 {[%clk
0:00:53.3]} 47... g5 {[%clk 0:01:39.4]} 48. Qb8 {[%clk 0:00:47.3]} 48... Be7
{[%clk 0:01:36.8]} 49. Rc6 {[%clk 0:00:38.5]} 49... Qd7 {[%clk 0:01:31.3]} 50.
Ne5 {[%clk 0:00:35]} 50... Qe8 {[%clk 0:01:21.6]} 51. Qb2 {[%clk 0:00:27.1]}
51... Bf6 {[%clk 0:01:15.5]} 52. Qxd4 {[%clk 0:00:21.1]} 52... Bxe5 {[%clk
0:01:14.4]} 53. Qc4 {[%clk 0:00:14.1]} 53... Qd7 {[%clk 0:01:10.4]} 54. Rc5
{[%clk 0:00:07.6]} 54... Rxc7 {[%clk 0:01:05.5]} 55. Rxc7 {[%clk 0:00:06.4]}
55... Qxc7 {[%clk 0:01:04.3]} 0-1

[Event "Live Chess"]
[Site "Chess.com"]
[Date "2024.06.01"]
[Round "-"]
[White "Ferrarifan27"]
[Black "Dhaydon19"]
[Result "0-1"]
[WhiteElo "2069"]
[BlackElo "2668"]
[TimeControl "300"]
[EndTime "13:27:50 PDT"]
[Termination "Dhaydon19 won by resignation"]

1. e4 {[%clk 0:04:48.4]} 1... c6 {[%clk 0:04:59.3]} 2. d4 {[%clk 0:04:46.2]}
2... d5 {[%clk 0:04:59.1]} 3. e5 {[%clk 0:04:44.7]} 3... c5 {[%clk 0:04:57.9]}
4. dxc5 {[%clk 0:04:42.2]} 4... Nc6 {[%clk 0:04:57]} 5. a3 {[%clk 0:04:40.7]}
5... Nxe5 {[%clk 0:04:55.4]} 6. b4 {[%clk 0:04:38.2]} 6... e6 {[%clk 0:04:54.4]}
7. Bb2 {[%clk 0:04:34.9]} 7... Nc6 {[%clk 0:04:53.5]} 8. Nf3 {[%clk 0:04:32.6]}
8... Nf6 {[%clk 0:04:52.8]} 9. c4 {[%clk 0:04:27.2]} 9... Be7 {[%clk 0:04:51.9]}
10. cxd5 {[%clk 0:04:26.1]} 10... exd5 {[%clk 0:04:51]} 11. Bd3 {[%clk
0:04:22.6]} 11... O-O {[%clk 0:04:49.8]} 12. O-O {[%clk 0:04:21.3]} 12... Bg4
{[%clk 0:04:48.7]} 13. h3 {[%clk 0:04:18.9]} 13... Bh5 {[%clk 0:04:47.3]} 14.
Nbd2 {[%clk 0:04:15.9]} 14... Re8 {[%clk 0:04:45.9]} 15. Qc2 {[%clk 0:04:11.7]}
15... Bg6 {[%clk 0:04:44]} 16. Bxg6 {[%clk 0:04:07.5]} 16... hxg6 {[%clk
0:04:42.7]} 17. Rfe1 {[%clk 0:04:06.6]} 17... Rc8 {[%clk 0:04:40]} 18. Ng5
{[%clk 0:03:52.5]} 18... Qc7 {[%clk 0:04:37.1]} 19. Ndf3 {[%clk 0:03:51.2]}
19... Bf8 {[%clk 0:04:35.2]} 20. Qd2 {[%clk 0:03:33.5]} 20... Rcd8 {[%clk
0:04:30]} 21. Nd4 {[%clk 0:03:26.5]} 21... Ne4 {[%clk 0:04:28.1]} 22. Nxe4
{[%clk 0:03:22.1]} 22... dxe4 {[%clk 0:04:26.6]} 23. Qe3 {[%clk 0:03:19.3]}
23... f5 {[%clk 0:04:22.7]} 24. Nxc6 {[%clk 0:03:17.7]} 24... Qxc6 {[%clk
0:04:07.7]} 25. Rad1 {[%clk 0:03:15.7]} 25... Be7 {[%clk 0:04:02.1]} 26. Qb3+
{[%clk 0:03:10.2]} 26... Kf8 {[%clk 0:03:58.5]} 27. Qg3 {[%clk 0:02:48.9]} 27...
Kf7 {[%clk 0:03:53.5]} 28. Qb3+ {[%clk 0:02:45.5]} 28... Qe6 {[%clk 0:03:52.7]}
29. Qa4 {[%clk 0:02:40]} 29... a6 {[%clk 0:03:49.6]} 30. Rxd8 {[%clk 0:02:37.3]}
30... Rxd8 {[%clk 0:03:47.8]} 31. Rd1 {[%clk 0:02:37]} 31... Rd3 {[%clk
0:03:43.5]} 32. Qc2 {[%clk 0:02:30.4]} 32... Qd5 {[%clk 0:03:41.1]} 33. Rxd3
{[%clk 0:02:28.6]} 33... exd3 {[%clk 0:03:40.5]} 34. Qd2 {[%clk 0:02:27.6]}
34... Bg5 {[%clk 0:03:35.8]} 35. Qd1 {[%clk 0:02:20.5]} 35... d2 {[%clk
0:03:28.1]} 36. g3 {[%clk 0:02:15.5]} 36... Qd3 {[%clk 0:03:17.6]} 37. Kg2
{[%clk 0:02:02.6]} 37... Qe4+ {[%clk 0:03:14.7]} 38. Kf1 {[%clk 0:02:00.2]}
38... Qh1+ {[%clk 0:03:06.7]} 39. Ke2 {[%clk 0:01:59.4]} 39... Qe4+ {[%clk
0:03:04.1]} 40. Kf1 {[%clk 0:01:57.8]} 40... Qd3+ {[%clk 0:03:01.7]} 41. Kg2
{[%clk 0:01:53.6]} 41... Bf6 {[%clk 0:03:00.8]} 42. Bxf6 {[%clk 0:01:51.3]}
42... gxf6 {[%clk 0:02:59.7]} 43. f3 {[%clk 0:01:44.3]} 43... Ke6 {[%clk
0:02:58.3]} 44. Kf2 {[%clk 0:01:41.3]} 44... Kd5 {[%clk 0:02:56.8]} 45. h4
{[%clk 0:01:36.1]} 45... Kd4 {[%clk 0:02:54.5]} 46. g4 {[%clk 0:01:25]} 46... f4
{[%clk 0:02:50.1]} 47. Qa1+ {[%clk 0:01:19.3]} 47... Qc3 {[%clk 0:02:47.7]} 48.
Qb1 {[%clk 0:01:11.7]} 48... Qe3+ {[%clk 0:02:45.6]} 49. Kg2 {[%clk 0:01:08.3]}
49... Qe2+ {[%clk 0:02:44.5]} 50. Kh3 {[%clk 0:01:06.7]} 50... d1=Q {[%clk
0:02:44.1]} 51. Qxd1+ {[%clk 0:01:03.5]} 51... Qxd1 {[%clk 0:02:43.2]} 0-1

[Event "Live Chess"]
[Site "Chess.com"]
[Date "2024.06.01"]
[Round "-"]
[White "koekoekoe"]
[Black "DarranAS"]
[Result "1-0"]
[WhiteElo "2049"]
[BlackElo "1425"]
[TimeControl "300"]
[EndTime "13:27:52 PDT"]
[Termination "koekoekoe won on time"]

1. d4 {[%clk 0:04:59.5]} 1... d5 {[%clk 0:04:50.2]} 2. Bf4 {[%clk 0:04:58.7]}
2... Nf6 {[%clk 0:04:41.1]} 3. e3 {[%clk 0:04:58.1]} 3... g6 {[%clk 0:04:37.1]}
4. Nf3 {[%clk 0:04:56.7]} 4... Nbd7 {[%clk 0:04:32.9]} 5. c4 {[%clk 0:04:53.4]}
5... c6 {[%clk 0:04:30.7]} 6. Nc3 {[%clk 0:04:39.9]} 6... Bg7 {[%clk 0:04:27.2]}
7. Be2 {[%clk 0:04:36.7]} 7... O-O {[%clk 0:04:25.9]} 8. h3 {[%clk 0:04:36.2]}
8... dxc4 {[%clk 0:04:22]} 9. Bxc4 {[%clk 0:04:34.6]} 9... b5 {[%clk 0:04:19.8]}
10. Be2 {[%clk 0:04:32.5]} 10... Bb7 {[%clk 0:04:15.5]} 11. O-O {[%clk
0:04:31.8]} 11... a6 {[%clk 0:04:13.2]} 12. Rc1 {[%clk 0:04:31.2]} 12... c5
{[%clk 0:04:06.5]} 13. dxc5 {[%clk 0:04:23.3]} 13... Nxc5 {[%clk 0:04:04]} 14.
Nxb5 {[%clk 0:04:16.2]} 14... axb5 {[%clk 0:03:53.9]} 15. Rxc5 {[%clk
0:04:14.4]} 15... Rxa2 {[%clk 0:03:34.3]} 16. Rxb5 {[%clk 0:04:10.6]} 16... Be4
{[%clk 0:03:27.6]} 17. Qb3 {[%clk 0:04:01.2]} 17... Qa8 {[%clk 0:03:00.4]} 18.
Nh4 {[%clk 0:03:08.7]} 18... Nd5 {[%clk 0:02:38.9]} 19. Bg3 {[%clk 0:02:51.9]}
19... Rxb2 {[%clk 0:02:35.4]} 20. Qc4 {[%clk 0:02:43.6]} 20... Rxb5 {[%clk
0:02:26.7]} 21. Qxb5 {[%clk 0:02:40.6]} 21... Nc3 {[%clk 0:02:24.2]} 22. Qc4
{[%clk 0:02:32.9]} 22... Rc8 {[%clk 0:02:04]} 23. Qa6 {[%clk 0:02:20]} 23...
Nxe2+ {[%clk 0:01:43.4]} 24. Qxe2 {[%clk 0:02:17.4]} 24... Rc2 {[%clk
0:01:30.8]} 25. Qg4 {[%clk 0:02:12.3]} 25... f5 {[%clk 0:00:59.3]} 26. Qf4
{[%clk 0:02:04.4]} 26... Kf7 {[%clk 0:00:48.5]} 27. Nf3 {[%clk 0:02:00.7]} 27...
Kf6 {[%clk 0:00:35]} 28. Qe5+ {[%clk 0:01:52.4]} 28... Kf7 {[%clk 0:00:33.3]}
29. Ng5+ {[%clk 0:01:50.9]} 29... Kf8 {[%clk 0:00:28.3]} 30. Ne6+ {[%clk
0:01:49.5]} 30... Ke8 {[%clk 0:00:21]} 31. Qxg7 {[%clk 0:01:39.7]} 31... Bxg2
{[%clk 0:00:15.9]} 32. Qg8+ {[%clk 0:01:32.6]} 32... Kd7 {[%clk 0:00:15.1]} 33.
Qxa8 {[%clk 0:01:31.6]} 33... Bxa8 {[%clk 0:00:12.4]} 34. Nf8+ {[%clk 0:01:29]}
34... Kc6 {[%clk 0:00:10.1]} 35. Nxh7 {[%clk 0:01:27.8]} 35... Kc5 {[%clk
0:00:05.1]} 36. Ng5 {[%clk 0:01:27.3]} 1-0